bitfinex-derivatives/quotes_SOLF0:USTF0_20260215
["timestamp","ask_amount","ask_price","bid_price","bid_amount"]
[1771133682049,1.27488214,89.608,89.554,4.63650827]
[1771133682452,2.2317944,89.59,89.554,4.63650827]
[1771133682647,2.2317944,89.59,89.532,4.78702956]
[1771133683252,2.2317944,89.59,89.535,4.85565036]
[1771133683751,1.27488214,89.599,89.541,4.85565036]
[1771133683949,2.2317944,89.6,89.551,4.85565036]
[1771133684348,2.2317944,89.61,89.561,4.85565036]
[1771133684553,2.2317944,89.62,89.561,4.85565036]
[1771133684854,1.26129309,89.624,89.561,4.85565036]
[1771133684855,2.2317944,89.61,89.561,4.85565036]
[1771133687055,10.0462,89.618,89.561,4.85565036]
[1771133687556,2.2317944,89.61,89.561,4.85565036]
[1771133690361,1.20243255,89.599,89.546,4.85565036]
[1771133690559,1.20243255,89.589,89.546,4.85565036]
[1771133690759,2.2317944,89.58,89.531,4.85565036]
[1771133691762,2.2317944,89.58,89.534,4.85565036]
[1771133691964,1.20243255,89.589,89.534,4.85565036]
[1771133692465,2.2317944,89.6,89.541,4.85565036]
[1771133692666,1.19360385,89.606,89.491,33.64]
[1771133692667,1.19360385,89.606,89.551,4.85565036]
[1771133693465,2.2317944,89.6,89.551,4.85565036]
[1771133696865,2.2317944,89.6,89.553,4.85565036]
[1771133697258,1.21622237,89.599,89.553,4.85565036]
[1771133700266,2.2317944,89.58,89.533,4.85565036]
[1771133701867,2.2317944,89.57,89.533,4.85565036]
[1771133702475,2.2317944,89.56,89.501,4.85565036]
[1771133702669,2.2317944,89.56,89.511,4.85565036]
[1771133702867,2.23547078,89.56,89.511,4.85565036]
[1771133703571,2.23547078,89.58,89.521,4.85565036]
[1771133703767,3.51508666,89.58,89.521,4.85565036]
[1771133704772,3.51508666,89.58,89.52,2.23547078]
[1771133704773,3.51508666,89.58,89.523,4.85565036]
[1771133705574,3.51508666,89.58,89.525,4.85565036]
[1771133705777,2.23547078,89.57,89.525,4.85565036]
[1771133707272,2.23547078,89.56,89.512,10.0579]
[1771133707470,2.23547078,89.56,89.513,4.85565036]
[1771133708171,2.23547078,89.55,89.513,4.85565036]
[1771133708376,2.23547078,89.54,89.499,4.85565036]
[1771133708978,2.23547078,89.53,89.499,4.85565036]
[1771133709178,2.23547078,89.53,89.492,10.0601]
[1771133710273,2.23547078,89.55,89.501,4.85565036]
[1771133710579,2.23547078,89.53,89.501,4.85565036]
[1771133710772,2.23547078,89.53,89.485,4.85565036]
[1771133713169,2.23547078,89.5,89.467,4.64948212]
[1771133713573,2.23547078,89.49,89.467,4.64948212]
[1771133713776,2.23547078,89.5,89.467,4.64948212]
[1771133713981,2.23547078,89.49,89.467,4.64948212]
[1771133714177,89.12,89.525,89.415,435.98353985]
[1771133714178,2.23547078,89.48,89.445,4.64948212]
[1771133714480,2.23547078,89.52,89.461,4.64948212]
[1771133715182,2.23547078,89.52,89.426,120.82]
[1771133715183,3.67921965,89.539,89.481,4.64948212]
[1771133715379,2.23547078,89.54,89.481,4.64948212]
[1771133716272,2.23547078,89.54,89.483,4.64948212]
[1771133716583,2.23547078,89.55,89.491,4.64948212]
[1771133717779,2.23547078,89.55,89.493,4.64948212]
[1771133717984,2.23547078,89.54,89.493,4.64948212]
[1771133719882,2.23547078,89.55,89.493,4.64948212]
[1771133721787,5.73943043,89.54,89.493,4.64948212]
[1771133721988,2.23547078,89.52,89.479,4.64948212]
[1771133722287,3.4988159,89.529,89.479,4.64948212]
[1771133722987,2.23547078,89.52,89.479,4.64948212]
[1771133723684,3.4988159,89.529,89.479,4.64948212]
[1771133724882,3.4988159,89.529,89.429,89.14]
[1771133724883,2.23547078,89.49,89.448,4.64948212]
[1771133725082,2.23547078,89.5,89.448,4.64948212]
[1771133725286,89.14,89.522,89.448,4.64948212]
[1771133725287,2.23547078,89.49,89.448,4.64948212]
[1771133725991,2.23547078,89.52,89.461,4.64948212]
[1771133726886,2.23547078,89.52,89.464,4.64948212]
[1771133727392,2.23547078,89.52,89.471,4.64948212]
[1771133728489,10.0558,89.532,89.41,120.34]
[1771133728490,10.0558,89.532,89.481,4.64948212]
[1771133728695,2.23547078,89.54,89.481,4.64948212]
[1771133728990,2.23547078,89.54,89.483,4.64948212]
[1771133729695,2.23547078,89.54,89.485,4.64948212]
[1771133730890,3.43773963,89.542,89.485,4.64948212]
[1771133734203,10.0548,89.541,89.485,4.64948212]
[1771133734396,3.32191646,89.54,89.485,4.64948212]
[1771133735595,3.3177943,89.539,89.485,4.64948212]
[1771133735799,3.31601316,89.535,89.485,4.64948212]
[1771133736902,3.31196542,89.533,89.485,4.64948212]
[1771133737797,5.9912594,89.54,89.485,4.64948212]
[1771133738005,10.0542,89.546,89.485,4.64948212]
[1771133738701,10.0542,89.546,89.487,4.64948212]
[1771133738894,3.30358615,89.538,89.487,4.64948212]
[1771133739703,89.16,89.559,89.428,20.1348]
[1771133739704,3.30358615,89.534,89.472,4.64948212]
[1771133740796,10.057,89.521,89.472,4.64948212]
[1771133741305,3.27298848,89.518,89.456,4.79207568]
[1771133742609,10.0578,89.515,89.458,4.79207568]
[1771133743208,10.0579,89.513,89.458,4.79207568]
[1771133744109,10.0585,89.508,89.458,4.79207568]
[1771133744303,13.14924508,89.508,89.458,4.79207568]
[1771133745002,3.08731733,89.494,89.433,4.57916928]
[1771133745713,3.08731733,89.494,89.434,4.57916928]
[1771133745907,3.08731733,89.494,89.416,4.57916928]
[1771133746104,3.06928249,89.479,89.416,4.57916928]
[1771133746499,13.13168249,89.473,89.416,4.57916928]
[1771133746704,3.06928249,89.472,89.416,4.57916928]
[1771133747710,3.04871155,89.469,89.416,4.57916928]
[1771133748405,3.0449725,89.463,89.416,4.57916928]
[1771133748607,3.0449725,89.463,89.401,4.57916928]
[1771133749808,13.10544717,89.462,89.401,4.57916928]
[1771133750014,3.05427418,89.461,89.401,4.57916928]
[1771133750810,5.9912594,89.47,89.401,4.57916928]
[1771133750811,3.05464041,89.459,89.401,4.57916928]
[1771133751008,2.24118575,89.45,89.401,4.57916928]
[1771133751810,2.24118575,89.44,89.401,4.57916928]
[1771133752021,2.24118575,89.45,89.401,4.57916928]
[1771133752210,3.05464041,89.459,89.401,4.57916928]
[1771133752518,2.24118575,89.45,89.401,4.57916928]
[1771133752707,2.24118575,89.45,89.372,101.26]
[1771133752708,3.05464041,89.459,89.402,4.57916928]
[1771133752910,2.24118575,89.46,89.402,4.57916928]
[1771133753916,2.24118575,89.46,89.404,4.57916928]
[1771133755518,5.1850614,89.46,89.404,4.57916928]
[1771133757109,5.1850614,89.46,89.4,2.24118575]
[1771133757110,5.1850614,89.46,89.406,4.57916928]
[1771133758923,2.24118575,89.45,89.406,4.57916928]
[1771133759118,5.1850614,89.46,89.406,4.57916928]
[1771133759518,2.24118575,89.49,89.431,4.57916928]
[1771133759716,2.79485695,89.491,89.441,4.57916928]
[1771133759916,2.24118575,89.5,89.441,4.57916928]
[1771133760422,2.24118575,89.51,89.451,4.57916928]
[1771133760820,10.0585,89.508,89.451,4.57916928]
[1771133761025,2.24118575,89.51,89.461,4.57916928]
[1771133761221,2.81066351,89.522,89.461,4.57916928]
[1771133761418,2.24118575,89.51,89.461,4.57916928]
[1771133761618,2.24118575,89.52,89.471,4.57916928]
[1771133761818,2.81066351,89.522,89.48,2.24118575]
[1771133762013,2.24118575,89.53,89.48,2.24118575]
[1771133762227,2.24118575,89.53,89.481,4.57916928]
[1771133762426,2.24118575,89.54,89.483,4.57916928]
[1771133762820,2.75100756,89.541,89.482,10.0613]
[1771133762821,2.75100756,89.541,89.491,4.57916928]
[1771133764521,5.9903637,89.53,89.451,4.57916928]
[1771133764729,2.67583432,89.509,89.416,4.57916928]
[1771133765815,2.65437652,89.498,89.427,4.57916928]
[1771133766728,2.65129333,89.495,89.432,4.57916928]
[1771133767524,2.64876,89.488,89.432,4.57916928]
[1771133768225,10.0593,89.5,89.432,4.57916928]
[1771133768931,2.80521378,89.505,89.434,4.57916928]
[1771133769720,10.0579,89.513,89.438,4.57916928]
[1771133770834,10.0579,89.513,89.445,4.57916928]
[1771133771423,10.0579,89.513,89.447,4.57916928]
[1771133772923,2.81501442,89.509,89.447,4.57916928]
[1771133774932,2.80525803,89.507,89.447,4.57916928]
[1771133775229,10.0587,89.506,89.447,4.57916928]
[1771133775833,2.88899124,89.505,89.447,4.57916928]
[1771133776536,2.88629112,89.503,89.447,4.57916928]
[1771133777733,2.88629112,89.503,89.41,5.9903637]
[1771133777734,2.88629112,89.503,89.45,4.61768989]
[1771133777934,2.98594283,89.516,89.45,4.61768989]
[1771133778731,2.98594283,89.514,89.452,4.61768989]
[1771133783640,3.05261284,89.51,89.452,4.61768989]
[1771133784047,2.9702043,89.508,89.452,4.61768989]
[1771133784640,2.9702043,89.508,89.454,4.61768989]
[1771133785638,2.9702043,89.508,89.456,4.61768989]
[1771133786543,10.0572,89.519,89.471,4.61768989]
[1771133786746,2.2383436,89.52,89.471,4.61768989]
[1771133786947,2.81908667,89.523,89.471,4.61768989]
[1771133787250,2.81704977,89.537,89.474,4.61768989]
[1771133787444,10.055,89.539,89.474,4.61768989]
[1771133787843,2.85109486,89.548,89.486,4.61768989]
[1771133789645,2.84901795,89.542,89.486,4.61768989]
[1771133790741,12.74783334,89.541,89.486,4.61768989]
[1771133791141,2.69100101,89.54,89.486,4.61768989]
[1771133791342,2.69100101,89.538,89.486,4.61768989]
[1771133793544,2.69100101,89.538,89.46,5.99302436]
[1771133793545,2.59685965,89.533,89.472,14.68018989]
[1771133793937,2.59685965,89.533,89.473,4.61768989]
[1771133794848,2.59054804,89.531,89.475,4.61768989]
[1771133796253,2.61561946,89.545,89.475,4.61768989]
[1771133797749,2.6137716,89.544,89.479,4.61768989]
[1771133798752,2.63679845,89.54,89.481,4.61768989]
[1771133799755,2.63679845,89.54,89.486,4.61768989]
[1771133800656,12.63315661,89.538,89.486,4.61768989]
[1771133800850,89.18,89.555,89.486,4.61768989]
[1771133800851,2.57805661,89.537,89.486,4.61768989]
[1771133802857,10.0563,89.527,89.486,4.61768989]
[1771133803556,2.44978336,89.52,89.461,4.72832525]
[1771133804454,2.44978336,89.52,89.463,4.72832525]
[1771133805861,2.44978336,89.52,89.467,4.72832525]
[1771133806056,10.0573,89.519,89.467,4.72832525]
[1771133806256,2.44978336,89.52,89.469,4.72832525]
[1771133806958,4.68726554,89.52,89.469,4.72832525]
[1771133807860,14.74446554,89.52,89.469,4.72832525]
[1771133808455,2.23748218,89.51,89.456,4.72832525]
[1771133808662,9.0,89.549,89.443,4.72832525]
[1771133808663,2.51903153,89.489,89.443,4.72832525]
[1771133809560,2.23748218,89.48,89.443,4.72832525]
[1771133810764,2.47076772,89.478,89.425,4.72832525]
[1771133810962,2.23748218,89.47,89.425,4.72832525]
[1771133811859,2.4627285,89.469,89.425,4.72832525]
[1771133813358,10.0617,89.479,89.425,4.72832525]
[1771133813559,10.0606,89.489,89.431,4.72832525]
[1771133813961,10.0606,89.489,89.432,4.72832525]
[1771133814665,2.23748218,89.48,89.432,4.72832525]
[1771133815561,10.0606,89.489,89.432,4.72832525]
[1771133815767,10.0612,89.484,89.432,4.72832525]
[1771133816066,2.23748218,89.48,89.432,4.72832525]
[1771133816266,2.23748218,89.47,89.432,4.72832525]
[1771133816664,12.75290448,89.479,89.432,4.72832525]
[1771133817265,10.0628,89.47,89.432,4.72832525]
[1771133817470,2.23748218,89.46,89.418,4.72832525]
[1771133817768,14.98996643,89.47,89.418,4.72832525]
[1771133818268,14.98996643,89.47,89.421,4.72832525]
[1771133823373,2.23748218,89.46,89.421,4.72832525]
[1771133824978,2.24059324,89.46,89.421,4.72832525]
[1771133826176,2.78316144,89.459,89.406,4.72832525]
[1771133826380,2.78316144,89.449,89.406,4.72832525]
[1771133826779,2.24059324,89.47,89.411,4.72832525]
[1771133827380,2.78195848,89.469,89.411,4.72832525]
[1771133827581,2.24059324,89.46,89.411,4.72832525]
[1771133828687,2.78195848,89.469,89.411,4.72832525]
[1771133828983,10.0631,89.467,89.414,4.72832525]
[1771133829581,2.24059324,89.46,89.414,4.72832525]
[1771133829783,5.07657854,89.46,89.414,4.72832525]
[1771133829983,9.0,89.529,89.414,4.72832525]
[1771133829984,2.24059324,89.48,89.42,2.24059324]
[1771133830182,2.24059324,89.48,89.421,4.72832525]
[1771133830879,2.24059324,89.48,89.425,4.72832525]
[1771133831882,10.0617,89.479,89.425,4.72832525]
[1771133833686,2.85264969,89.475,89.425,4.72832525]
[1771133833886,2.24059324,89.47,89.425,4.72832525]
[1771133834692,2.24059324,89.46,89.411,4.61575825]
[1771133834986,2.83414923,89.459,89.411,4.61575825]
[1771133835792,5.03851905,89.45,89.411,4.61575825]
[1771133837395,2.79792581,89.45,89.411,4.61575825]
[1771133837586,2.79554917,89.445,89.396,4.61575825]
[1771133837787,2.79554917,89.445,89.327,156.7816]
[1771133837788,2.24059324,89.42,89.381,4.61575825]
[1771133837987,2.24059324,89.41,89.367,4.61575825]
[1771133842193,2.89776647,89.419,89.367,4.61575825]
[1771133843796,2.67951418,89.436,89.381,4.61575825]
[1771133844099,2.67951418,89.436,89.391,4.61575825]
[1771133844497,2.24059324,89.42,89.373,4.61575825]
[1771133844889,2.47356777,89.419,89.373,4.61575825]
[1771133845195,2.24059324,89.41,89.373,4.61575825]
[1771133845999,2.47356777,89.418,89.373,4.61575825]
[1771133846996,156.5232,89.475,89.338,119.5]
[1771133846997,2.5241847,89.446,89.391,4.61575825]
[1771133847502,2.24059324,89.44,89.391,4.61575825]
[1771133847704,2.5241847,89.439,89.391,4.61575825]
[1771133848801,2.53588833,89.455,89.401,4.61575825]
[1771133849006,2.53588833,89.455,89.411,4.61575825]
[1771133849701,2.24059324,89.45,89.411,4.61575825]
[1771133851305,2.24059324,89.46,89.411,4.61575825]
[1771133854708,4.69774496,89.46,89.411,4.61575825]
[1771133855612,2.24059324,89.47,89.414,4.61575825]
[1771133856311,2.24059324,89.47,89.417,4.61575825]
[1771133856708,2.44906843,89.468,89.417,4.61575825]
[1771133857009,2.44906843,89.468,89.353,33.55]
[1771133857010,2.24059324,89.45,89.401,4.61575825]
[1771133857609,2.24059324,89.46,89.403,4.61575825]
[1771133858414,2.24059324,89.46,89.41,2.24059324]
[1771133858714,2.24059324,89.46,89.411,4.61575825]
[1771133859311,2.24059324,89.45,89.411,4.61575825]
[1771133859510,2.42911053,89.459,89.411,4.61575825]
[1771133860206,2.24059324,89.46,89.411,4.61575825]
[1771133860413,2.24059324,89.47,89.421,4.61575825]
[1771133861408,2.45613802,89.468,89.421,4.61575825]
[1771133862410,10.37654247,89.527,89.421,4.61575825]
[1771133862411,2.47432216,89.486,89.421,4.61575825]
[1771133862611,2.24059324,89.48,89.421,4.61575825]
[1771133862805,2.47432216,89.486,89.431,4.71798601]
[1771133863714,2.47432216,89.486,89.433,4.58161374]
[1771133865814,10.0593,89.501,89.44,6.82220698]
[1771133866118,2.24059324,89.49,89.441,4.58161374]
[1771133866815,2.24059324,89.49,89.443,4.58161374]
[1771133867411,2.24059324,89.5,89.447,4.58161374]
[1771133868916,2.48395292,89.508,89.447,4.58161374]
[1771133868917,2.31043263,89.489,89.447,4.58161374]
[1771133869716,2.24059324,89.49,89.447,4.58161374]
[1771133869919,10.0596,89.498,89.447,4.58161374]
[1771133870621,2.24059324,89.49,89.447,4.58161374]
[1771133871218,2.24059324,89.48,89.435,10.0666]
[1771133871419,2.24059324,89.48,89.435,14.64821374]
[1771133873426,2.15939083,89.489,89.438,4.58161374]
[1771133873621,2.1514209,89.531,89.451,4.58161374]
[1771133873826,2.24059324,89.52,89.461,4.58161374]
[1771133874328,2.24059324,89.53,89.472,4.58161374]
[1771133875223,172.37624312,89.537,89.472,4.58161374]
[1771133875224,2.24059324,89.51,89.472,4.58161374]
[1771133876025,2.13385825,89.518,89.472,4.58161374]
[1771133878527,2.24059324,89.53,89.474,4.58161374]
[1771133878726,4.87856973,89.53,89.474,4.58161374]
[1771133879029,2.24059324,89.52,89.474,4.58161374]
[1771133880030,2.5573295,89.6,89.481,4.58161374]
[1771133880225,4.79792274,89.6,89.541,4.58161374]
[1771133880825,2.5573295,89.6,89.541,4.58161374]
[1771133881825,4.42053074,89.619,89.545,4.58161374]
[1771133883730,4.42053074,89.619,89.557,4.58161374]
[1771133887526,4.42053074,89.619,89.559,4.58161374]
[1771133889231,4.42053074,89.619,89.561,4.58161374]
[1771133890538,4.42053074,89.634,89.564,4.58161374]
[1771133891835,4.42053074,89.634,89.567,4.58161374]
[1771133892737,4.42053074,89.634,89.572,4.58161374]
[1771133893444,4.42053074,89.634,89.582,4.36333034]
[1771133894838,4.42053074,89.634,89.585,4.36333034]
[1771133895341,4.42053074,89.634,89.561,4.36333034]
[1771133895940,4.38764639,89.629,89.561,4.36333034]
[1771133897541,4.38764639,89.629,89.563,4.36333034]
[1771133898144,4.38764639,89.629,89.566,4.36333034]
[1771133900840,2.23246524,89.62,89.568,4.36333034]
[1771133901138,2.23246524,89.62,89.571,4.36333034]
[1771133901338,9.0,89.673,89.527,89.1]
[1771133901339,4.38764639,89.634,89.58,2.23246524]
[1771133901640,4.38764639,89.619,89.563,4.36333034]
[1771133902145,4.38764639,89.619,89.564,14.41543034]
[1771133902837,4.38764639,89.619,89.565,4.36333034]
[1771133904047,4.38764639,89.619,89.571,4.36333034]
[1771133904245,2.23246524,89.63,89.571,4.36333034]
[1771133904445,4.38764639,89.629,89.581,4.36333034]
[1771133908244,4.38764639,89.65,89.544,89.08]
[1771133908446,4.38764639,89.65,89.601,4.36333034]
[1771133908645,4.38764639,89.649,89.601,4.36333034]
[1771133910148,6.62011163,89.64,89.598,4.36333034]
[1771133910449,4.38764639,89.639,89.581,4.36333034]
[1771133911046,2.23246524,89.62,89.57,2.23246524]
[1771133911246,4.38764639,89.619,89.567,4.36333034]
[1771133912756,4.38764639,89.619,89.569,10.0515]
[1771133913352,4.38764639,89.619,89.574,4.36333034]
[1771133913554,2.23246524,89.62,89.574,4.36333034]
[1771133914456,6.62011163,89.63,89.574,4.36333034]
[1771133914659,89.06,89.648,89.574,4.36333034]
[1771133914660,4.38764639,89.619,89.574,4.36333034]
[1771133918857,4.38764639,89.599,89.543,4.36333034]
[1771133919762,4.38764639,89.599,89.544,4.36333034]
[1771133920763,2.23246524,89.59,89.544,4.36333034]
[1771133920964,4.38764639,89.589,89.544,4.36333034]
[1771133921358,10.0505,89.579,89.529,4.36031793]
[1771133921562,4.61155588,89.562,89.511,4.36031793]
[1771133921757,4.61155588,89.559,89.511,4.36031793]
[1771133926270,4.49161101,89.573,89.514,4.55870429]
[1771133927872,4.49161101,89.573,89.519,4.55870429]
[1771133928672,4.49161101,89.573,89.425,27.33270123]
[1771133928673,4.49161101,89.569,89.499,4.55870429]
[1771133929470,10.0518,89.568,89.5,10.0593]
[1771133929674,4.49161101,89.567,89.499,4.55870429]
[1771133930775,4.49161101,89.567,89.501,4.55870429]
[1771133931871,4.49161101,89.567,89.506,4.55870429]
[1771133932875,4.49161101,89.567,89.509,4.55870429]
[1771133933573,4.49161101,89.567,89.511,4.55870429]
[1771133934164,4.49161101,89.567,89.46,5.98795607]
[1771133934165,4.49161101,89.567,89.496,4.55870429]
[1771133934570,4.49161101,89.567,89.499,4.55870429]
[1771133935077,4.49161101,89.564,89.501,4.55870429]
[1771133935466,4.49161101,89.564,89.518,4.55870429]
[1771133937277,4.49161101,89.586,89.526,4.55870429]
[1771133938872,4.49161101,89.586,89.53,4.55870429]
[1771133941677,4.49161101,89.583,89.529,10.056]
[1771133942180,10.0505,89.58,89.517,10.0574]
[1771133942375,4.49161101,89.569,89.499,4.55870429]
[1771133942577,4.49161101,89.568,89.499,4.55870429]
[1771133942977,2.23664669,89.54,89.499,4.55870429]
[1771133944081,4.49161101,89.529,89.483,4.55870429]
[1771133944277,2.23664669,89.51,89.469,4.55870429]
[1771133944673,4.49161101,89.519,89.469,4.55870429]
[1771133944979,4.49161101,89.547,89.481,4.55870429]
[1771133945881,4.49161101,89.544,89.481,4.55870429]
[1771133946085,4.49161101,89.539,89.442,4.55870429]
[1771133947482,4.49161101,89.529,89.464,4.55870429]
[1771133948484,4.49161101,89.529,89.473,4.55870429]
[1771133952387,4.49161101,89.529,89.474,4.55870429]
[1771133954791,4.46726769,89.527,89.474,4.55870429]
[1771133955587,4.46726769,89.524,89.46,4.37735926]
[1771133956888,4.46726769,89.517,89.46,4.37735926]
[1771133958190,4.46726769,89.517,89.462,4.37735926]
[1771133959990,4.46726769,89.517,89.468,4.37735926]
[1771133961285,4.46726769,89.517,89.469,14.44015926]
[1771133961489,4.46726769,89.517,89.47,4.37735926]
[1771133967000,2.23793158,89.51,89.47,4.37735926]
[1771133967791,4.46726769,89.509,89.458,10.064]
[1771133967996,2.23793158,89.5,89.458,10.064]
[1771133968391,4.46726769,89.499,89.456,4.37735926]
[1771133968800,2.23793158,89.49,89.456,4.37735926]
[1771133968989,2.23793158,89.49,89.448,10.0651]
[1771133969601,2.23793158,89.49,89.448,14.44245926]
[1771133969795,2.23793158,89.49,89.449,4.37735926]
[1771133970197,4.46726769,89.499,89.449,4.37735926]
[1771133970396,9.0,89.542,89.471,4.37735926]
[1771133970397,12.29513158,89.52,89.471,4.37735926]
[1771133970903,4.46726769,89.519,89.471,4.37735926]
[1771133971298,2.23793158,89.51,89.471,4.37735926]
[1771133972192,4.46726769,89.509,89.454,4.37735926]
[1771133973196,4.46726769,89.509,89.456,4.37735926]
[1771133973700,2.23793158,89.5,89.456,4.37735926]
[1771133975302,2.23793158,89.48,89.431,4.37735926]
[1771133976504,4.46726769,89.486,89.431,4.37735926]
[1771133976705,4.46726769,89.486,89.435,4.37735926]
[1771133977702,4.46726769,89.486,89.438,10.0663]
[1771133977901,4.46726769,89.486,89.439,4.37735926]
[1771133978508,4.46726769,89.486,89.441,4.37735926]
[1771133981409,4.45195346,89.504,89.45,2.23793158]
[1771133981709,4.45195346,89.537,89.491,4.33541264]
[1771133982103,4.45195346,89.537,89.495,4.33541264]
[1771133984905,4.45195346,89.537,89.482,10.0613]
[1771133985411,4.45195346,89.537,89.483,4.34328722]
[1771133985711,4.45195346,89.537,89.49,2.23793158]
[1771133985910,4.45195346,89.537,89.483,4.34328722]
[1771133986907,2.23793158,89.5,89.454,4.34328722]
[1771133987105,4.64254824,89.499,89.454,4.34328722]
[1771134000618,4.64254824,89.489,89.439,10.0661]
[1771134001012,4.64254824,89.489,89.439,14.40938722]
[1771134001212,4.64254824,89.489,89.44,4.34328722]
[1771134001614,4.64254824,89.489,89.441,4.34328722]
[1771134001814,2.23793158,89.5,89.45,2.23793158]
[1771134002013,4.64254824,89.503,89.451,4.34328722]
[1771134002516,4.64254824,89.499,89.451,4.34328722]
[1771134005021,4.64254824,89.499,89.455,10.0644]
[1771134006219,4.64254824,89.499,89.455,14.40768722]
[1771134007716,4.64254824,89.499,89.456,4.34328722]
[1771134008720,4.64254824,89.515,89.461,4.34328722]
[1771134009818,4.64254824,89.515,89.466,4.34328722]
[1771134012218,2.23856911,89.51,89.466,4.34328722]
[1771134019228,4.64254824,89.515,89.466,4.34328722]
[1771134019424,4.74560863,89.528,89.48,4.40731943]
[1771134020732,4.74560863,89.528,89.482,4.40731943]
[1771134020936,2.23856911,89.53,89.482,4.40731943]
[1771134021231,10.0553,89.536,89.483,10.0612]
[1771134021427,4.74560863,89.529,89.482,4.40731943]
[1771134022123,218.14,89.544,89.44,27.33270123]
[1771134022321,2.23856911,89.46,89.408,12.08598814]
[1771134022522,8.12668876,89.521,89.408,12.08598814]
[1771134022726,2.23856911,89.46,89.423,12.08598814]
[1771134022925,2.23856911,89.47,89.423,12.08598814]
[1771134023129,2.23856911,89.49,89.437,12.08619971]
[1771134023323,2.23856911,89.49,89.401,236.16357404]
[1771134023324,89.18,89.498,89.441,12.08619971]
[1771134023524,2.23856911,89.5,89.441,12.08619971]
[1771134024734,2.23856911,89.5,89.442,12.26371039]
[1771134025436,20.1052,89.561,89.451,12.26420717]
[1771134025437,2.23856911,89.51,89.451,12.26420717]
[1771134025930,2.23856911,89.51,89.459,12.1739225]
[1771134029339,2.23856911,89.51,89.463,12.17395696]
[1771134030033,2.23856911,89.52,89.463,12.17395696]
[1771134031233,2.23856911,89.51,89.463,12.17395696]
[1771134031440,2.23856911,89.52,89.463,12.17395696]
[1771134032942,2.23856911,89.52,89.468,12.21420725]
[1771134033533,10.0573,89.519,89.468,12.21420725]
[1771134033732,2.23856911,89.51,89.468,12.21420725]
[1771134035840,2.23856911,89.52,89.469,10.0628]
[1771134036047,2.23856911,89.52,89.47,12.18953738]
[1771134036235,12.29456911,89.53,89.47,14.42810649]
[1771134036440,2.23856911,89.53,89.473,12.18953738]
[1771134036639,12.29346911,89.54,89.481,12.18953738]
[1771134036842,2.23856911,89.54,89.481,12.18953738]
[1771134037040,2.23856911,89.54,89.482,12.18985854]
[1771134037641,2.23856911,89.55,89.497,12.18985854]
[1771134038548,2.23856911,89.55,89.499,10.0594]
[1771134038747,2.23856911,89.55,89.5,12.17331251]
[1771134039344,2.23856911,89.55,89.5,14.41188162]
[1771134040251,2.23856911,89.55,89.5,12.17331251]
[1771134040450,2.23856911,89.54,89.5,12.17331251]
[1771134041447,2.23856911,89.55,89.5,12.17331251]
[1771134045049,2.23856911,89.55,89.5,14.41188162]
[1771134046253,2.23856911,89.55,89.5,12.17331251]
[1771134048859,2.23856911,89.55,89.501,10.0592]
[1771134049155,2.23856911,89.55,89.502,12.09507418]
[1771134050261,10.0527,89.56,89.505,12.07954929]
[1771134050451,12.29126911,89.56,89.505,12.07954929]
[1771134051656,12.29126911,89.56,89.463,89.16]
[1771134051657,2.23856911,89.54,89.49,14.31825609]
[1771134051860,2.23856911,89.54,89.49,12.07968698]
[1771134053561,2.23856911,89.54,89.49,14.31825609]
[1771134054262,2.23856911,89.54,89.49,12.07968698]
[1771134055560,10.0543,89.545,89.491,10.0603]
[1771134055760,2.23856911,89.54,89.492,12.09884106]
[1771134056863,10.0543,89.545,89.492,12.09884106]
[1771134057364,2.23856911,89.55,89.492,12.09884106]
[1771134060569,2.23856911,89.55,89.501,11.96834489]
[1771134060967,10.0516,89.57,89.508,11.96835513]
[1771134061173,10.42928778,89.607,89.463,89.16]
[1771134061174,2.23856911,89.59,89.531,11.96835513]
[1771134061767,215.5,89.595,89.541,11.96835513]
[1771134062071,313.84961677,89.645,89.475,20.1243]
[1771134062072,2.23856911,89.62,89.561,11.95530242]
[1771134062259,293.76341677,89.645,89.57,2.23856911]
[1771134062260,215.78,89.619,89.57,2.23856911]
[1771134063171,293.76341677,89.645,89.59,14.19386885]
[1771134063364,293.76341677,89.645,89.601,11.95529974]
[1771134064273,216.02,89.655,89.601,11.95529974]
[1771134064664,2.23856911,89.65,89.601,11.95529974]
[1771134064872,2.23856911,89.64,89.572,11.96522493]
[1771134065072,217.02,89.639,89.572,11.96522493]
[1771134065370,217.02,89.639,89.58,2.23856911]
[1771134065767,227.0638,89.639,89.58,2.23856911]
[1771134066474,227.0638,89.639,89.572,11.96522493]
[1771134066475,2.23856911,89.63,89.572,11.96522493]
[1771134068576,227.0638,89.639,89.581,12.01927907]
[1771134069271,2.23178059,89.63,89.581,12.01927907]
[1771134069977,2.23178059,89.62,89.567,12.01907743]
[1771134070164,2.23178059,89.61,89.567,12.01907743]
[1771134070975,2.23178059,89.62,89.567,12.01907743]
[1771134071877,2.23178059,89.63,89.581,12.01913151]
[1771134072075,89.1,89.645,89.591,12.00443914]
[1771134072575,2.23178059,89.64,89.591,12.00443914]
[1771134073369,2.23178059,89.63,89.591,12.00443914]